bitfinex-derivatives/quotes_SOLF0:USTF0_20250820
["timestamp","ask_amount","ask_price","bid_price","bid_amount"]
[1755685134754,5.5055,181.66,181.6,2.44260024]
[1755685134955,5.5055,181.66,181.62,5.5064]
[1755685135148,3.92633224,181.65,181.6,2.44260024]
[1755685135349,5.5055,181.66,181.62,5.5064]
[1755685136162,5.5052,181.67,181.63,5.5062]
[1755685136355,3.9268364,181.66,181.63,5.5062]
[1755685136557,135.04,181.71,181.63,5.5062]
[1755685136759,6.53039115,181.7,181.62,5.54846553]
[1755685136954,2.60355479,181.69,181.62,5.54846553]
[1755685137155,3.92675638,181.68,181.62,5.54846553]
[1755685137358,5.5057,181.66,181.62,5.54846553]
[1755685137762,5.5057,181.66,181.63,5.5062]
[1755685138761,5.5052,181.67,181.64,5.5059]
[1755685138958,301.97274369,181.73,181.63,2.44260024]
[1755685139162,6.53112655,181.72,181.63,2.44260024]
[1755685139362,6.53112655,181.71,181.63,2.44260024]
[1755685139563,6.53112655,181.7,181.66,0.03786117]
[1755685139759,3.92724727,181.69,181.66,0.03786117]
[1755685139958,3.92724727,181.68,181.66,0.03786117]
[1755685140160,3.92724727,181.67,181.66,0.03786117]
[1755685140761,9.43234727,181.67,181.66,0.03786117]
[1755685140964,7.0996237,181.67,181.57,2.44260024]
[1755685141264,3.92724727,181.66,181.57,2.44260024]
[1755685141454,3.92724727,181.65,181.57,2.44260024]
[1755685141657,2.44260024,181.69,181.57,2.44260024]
[1755685141658,3.92724727,181.64,181.57,2.44260024]
[1755685141858,3.92924386,181.63,181.58,5.5078]
[1755685142059,8.57762165,181.69,181.57,2.44260024]
[1755685142259,6.54200273,181.68,181.58,5.5077]
[1755685142564,6.54200273,181.67,181.58,5.5077]
[1755685142767,6.54200273,181.66,181.58,5.5077]
[1755685143066,3.92934186,181.65,181.57,2.44260024]
[1755685143253,135.0,181.71,181.6,2.44260024]
[1755685143458,6.51324647,181.7,181.63,5.5063]
[1755685143662,6.51323791,181.69,181.61,62.0]
[1755685143867,3.90091765,181.68,181.61,62.0]
[1755685144069,3.90091765,181.67,181.63,2.44260024]
[1755685144255,135.0,181.71,181.63,2.44260024]
[1755685144461,3.89918425,181.7,181.63,2.44260024]
[1755685144660,166.95274369,181.73,181.66,2.44260024]
[1755685144866,3.89876801,181.72,181.66,2.44260024]
[1755685145071,3.89876801,181.71,181.66,2.44260024]
[1755685145261,172.45604369,181.73,181.66,2.44260024]
[1755685145566,5.5043,181.7,181.67,5.505]
[1755685145764,5.5043,181.7,181.66,2.44260024]
[1755685146168,5.5043,181.7,181.66,5.5052]
[1755685147064,166.95274369,181.73,181.65,2.44260024]
[1755685147266,166.95274369,181.73,181.68,2.44260024]
[1755685147472,135.0,181.77,181.68,2.44260024]
[1755685147672,5.5032,181.74,181.7,5.5042]
[1755685148066,135.0,181.77,181.7,5.5042]
[1755685148371,3.89173243,181.76,181.7,5.5042]
[1755685148670,3.89173243,181.75,181.7,5.5042]
[1755685148870,3.89173243,181.74,181.7,5.5042]
[1755685149070,5.5035,181.73,181.7,5.5042]
[1755685149873,5.5036,181.72,181.7,5.5042]
[1755685150072,5.5036,181.72,181.69,5.5044]
[1755685150271,135.0,181.77,181.68,2.44260024]
[1755685150467,3.89076955,181.76,181.68,2.44260024]
[1755685150771,3.89076955,181.75,181.67,2.44260024]
[1755685150974,5.5044,181.7,181.67,2.44260024]
[1755685151177,135.0,181.77,181.64,2.44260024]
[1755685151373,6.49454224,181.76,181.64,2.44260024]
[1755685151672,3.89034724,181.75,181.64,2.44260024]
[1755685151874,5.5047,181.69,181.66,5.5054]
[1755685152475,5.5047,181.69,181.64,2.44260024]
[1755685153775,5.5042,181.7,181.64,2.44260024]
[1755685154278,5.5045,181.69,181.64,2.44260024]
[1755685154766,5.5044,181.7,181.66,5.5052]
[1755685155166,135.0,181.77,181.66,5.5052]
[1755685155368,6.49080997,181.76,181.66,5.5052]
[1755685155565,3.88789034,181.75,181.66,5.5052]
[1755685155768,5.5047,181.69,181.65,5.5056]
[1755685156174,5.5044,181.7,181.66,5.5053]
[1755685156474,135.0,181.77,181.64,2.44260024]
[1755685156678,6.48999433,181.76,181.64,2.44260024]
[1755685156878,5.5047,181.69,181.65,5.5056]
[1755685157673,137.44260024,181.77,181.64,2.44260024]
[1755685157873,6.48965872,181.76,181.64,2.44260024]
[1755685158071,3.88713007,181.75,181.64,2.44260024]
[1755685158278,3.88713007,181.74,181.64,2.44260024]
[1755685158473,3.88713007,181.73,181.64,2.44260024]
[1755685158680,135.0,181.77,181.64,2.44260024]
[1755685158875,6.48878537,181.76,181.64,2.44260024]
[1755685159185,5.5037,181.72,181.64,2.44260024]
[1755685159382,135.0,181.77,181.64,2.44260024]
[1755685159584,3.88595287,181.76,181.64,2.44260024]
[1755685159776,5.5041,181.71,181.67,5.5048]
[1755685160972,148.44680024,181.77,181.64,2.44260024]
[1755685161174,6.48751474,181.76,181.64,2.44260024]
[1755685161477,5.505,181.68,181.64,7.94830024]
[1755685161679,148.44680024,181.77,181.64,5.5057]
[1755685161880,6.48786374,181.76,181.64,5.5057]
[1755685162073,3.88581094,181.75,181.64,5.5057]
[1755685162278,3.88581094,181.74,181.64,5.5057]
[1755685162477,5.5044,181.7,181.63,2.44260024]
[1755685162784,134.94,181.76,181.63,2.44260024]
[1755685162978,6.48810949,181.75,181.65,5.5055]
[1755685163175,3.88601873,181.74,181.62,2.44260024]
[1755685163379,3.88601873,181.74,181.61,62.0]
[1755685163380,6.48841651,181.73,181.61,67.5068]
[1755685163686,5.5062,181.64,181.61,67.5068]
[1755685164078,5.5062,181.64,181.61,5.5068]
[1755685164280,5.5065,181.63,181.6,73.3056155]
[1755685164583,5.5065,181.63,181.6,5.5072]
[1755685165086,5.5067,181.62,181.59,7.95010024]
[1755685165279,2.44260024,181.71,181.56,2.44260024]
[1755685165482,6.49188018,181.7,181.56,2.44260024]
[1755685165784,2.44260024,181.71,181.56,2.44260024]
[1755685165785,3.88828821,181.69,181.56,2.44260024]
[1755685165979,3.88828821,181.68,181.56,2.44260024]
[1755685166175,3.88828821,181.67,181.56,2.44260024]
[1755685166380,2.44260024,181.71,181.56,2.44260024]
[1755685166683,6.49288161,181.7,181.59,5.5075]
[1755685166880,3.88889605,181.69,181.59,5.5075]
[1755685167089,3.88889605,181.68,181.59,5.5075]
[1755685167284,3.88889605,181.67,181.59,5.5075]
[1755685167480,2.44260024,181.71,181.58,5.5078]
[1755685167683,6.49352225,181.7,181.57,62.0]
[1755685167883,3.88927663,181.69,181.57,62.0]
[1755685168189,3.88927663,181.68,181.57,62.0]
[1755685168485,3.88927663,181.67,181.59,5.5073]
[1755685168686,2.44260024,181.71,181.59,5.5073]
[1755685168886,6.49408814,181.7,181.59,5.5073]
[1755685169086,5.5066,181.63,181.59,5.5073]
[1755685169490,5.507,181.61,181.57,62.0]
[1755685169682,2.44260024,181.71,181.57,62.0]
[1755685169984,2.44260024,181.68,181.56,2.44260024]
[1755685170186,5.5079,181.58,181.53,2.44260024]
[1755685170388,2.44260024,181.68,181.53,2.44260024]
[1755685170583,2.44260024,181.68,181.54,5.5088]
[1755685170584,5.5081,181.58,181.54,5.5088]
[1755685170981,2.44260024,181.68,181.54,5.5088]
[1755685171188,5.5084,181.57,181.54,5.5088]
[1755685171995,2.44260024,181.65,181.53,2.44260024]
[1755685172192,3.89039855,181.64,181.53,2.44260024]
[1755685172382,3.89039855,181.63,181.53,2.44260024]
[1755685172586,5.5086,181.56,181.53,2.44260024]
[1755685172986,5.5086,181.56,181.53,64.44260024]
[1755685173185,5.5086,181.56,181.53,69.95190024]
[1755685174390,5.5088,181.55,181.53,64.44260024]
[1755685174594,2.44260024,181.65,181.52,134.92]
[1755685174786,2.44260024,181.62,181.52,134.92]
[1755685174983,3.88493715,181.61,181.5,7.95270024]
[1755685175490,5.5094,181.53,181.5,7.95270024]
[1755685175889,2.44260024,181.62,181.51,5.5099]
[1755685176086,3.88379874,181.61,181.51,5.5099]
[1755685176290,2.44260024,181.62,181.52,5.5095]
[1755685176491,3.88270156,181.61,181.52,5.5095]
[1755685176685,2.44260024,181.62,181.52,5.5095]
[1755685176890,3.88270156,181.61,181.52,5.5095]
[1755685177086,2.44260024,181.62,181.52,5.5095]
[1755685177286,3.88166391,181.61,181.52,5.5095]
[1755685177493,2.44260024,181.62,181.52,5.5095]
[1755685177798,13.45400024,181.66,181.53,2.44260024]
[1755685177994,3.88210286,181.65,181.53,2.44260024]
[1755685178194,3.88210286,181.64,181.53,2.44260024]
[1755685178394,5.5078,181.59,181.53,2.44260024]
[1755685178601,13.45400024,181.66,181.53,2.44260024]
[1755685178901,5.5082,181.57,181.53,2.44260024]
[1755685179089,13.45400024,181.66,181.52,2.44260024]
[1755685179295,6.48539812,181.65,181.52,2.44260024]
[1755685179492,5.5088,181.55,181.52,2.44260024]
[1755685179703,5.5088,181.55,181.46,134.96]
[1755685179901,5.5088,181.55,181.52,5.5095]
[1755685181107,5.5088,181.55,181.52,67.5095]
[1755685181501,5.5088,181.55,181.52,5.5095]
[1755685183302,5.5091,181.54,181.51,5.5099]
[1755685184507,5.5091,181.54,181.51,67.5099]
[1755685188707,5.5091,181.54,181.52,5.5095]
[1755685192319,5.5091,181.54,181.51,67.5099]
[1755685192816,2.44260024,181.63,181.53,5.5092]
[1755685193011,3.87099776,181.62,181.53,5.5092]
[1755685193216,5.5086,181.56,181.53,5.5092]
[1755685195615,2.44260024,181.65,181.51,62.0]
[1755685195818,3.87340468,181.64,181.51,62.0]
[1755685196010,3.87340468,181.63,181.51,62.0]
[1755685196210,5.5084,181.57,181.54,5.5089]
[1755685196917,11.0122,181.64,181.53,5.5092]
[1755685197112,3.87366629,181.63,181.53,5.5092]
[1755685197313,3.87366629,181.62,181.53,5.5092]
[1755685197513,11.0122,181.64,181.53,5.5092]
[1755685197714,3.87428417,181.63,181.53,5.5092]
[1755685197915,3.87428417,181.62,181.53,5.5092]
[1755685198214,3.87499076,181.61,181.53,5.5092]
[1755685198417,11.0122,181.64,181.53,5.5092]
[1755685198616,3.87499076,181.63,181.53,5.5092]
[1755685198817,3.87499076,181.62,181.53,5.5092]
[1755685199017,3.87499076,181.61,181.53,5.5092]
[1755685199320,5.5089,181.55,181.53,5.5092]
[1755685200223,5.5091,181.54,181.52,5.5095]
[1755685202628,5.5089,181.55,181.52,5.5095]
[1755685203318,5.5091,181.54,181.52,5.5095]
[1755685204315,5.5089,181.55,181.52,5.5095]
[1755685204926,5.5091,181.54,181.52,5.5095]
[1755685205626,5.5089,181.55,181.52,5.5095]
[1755685206824,5.5089,181.55,181.53,5.5093]
[1755685207830,5.5085,181.56,181.53,5.5093]
[1755685209322,11.0128,181.63,181.5,64.44260024]
[1755685209522,6.47764066,181.62,181.5,64.44260024]
[1755685209723,3.87059311,181.61,181.5,64.44260024]
[1755685210028,5.5083,181.57,181.54,5.5088]
[1755685211327,11.0128,181.63,181.53,5.5093]
[1755685211529,6.48387157,181.62,181.53,5.5093]
[1755685211829,6.48387157,181.61,181.53,5.5093]
[1755685212029,3.87430257,181.6,181.53,5.5093]
[1755685212229,11.0128,181.63,181.53,5.5093]
[1755685212230,5.5087,181.55,181.53,5.5093]
[1755685216331,5.5091,181.54,181.5,2.44260024]
[1755685216530,11.0137,181.62,181.5,2.44260024]
[1755685216734,5.5093,181.54,181.51,5.5098]
[1755685217734,2.44260024,181.59,181.47,2.44260024]
[1755685217933,6.49570085,181.58,181.47,2.44260024]
[1755685218133,5.5108,181.49,181.47,5.511]
[1755685218437,6.16201684,181.57,181.45,67.15120488]
[1755685218638,6.49291436,181.56,181.45,67.15120488]
[1755685218835,5.5108,181.49,181.46,5.5114]
[1755685219434,5.5108,181.49,181.45,67.15120488]
[1755685220041,5.5108,181.49,181.46,5.5114]
[1755685220439,2.44260024,181.56,181.46,5.5114]
[1755685220637,6.48785323,181.55,181.46,5.5114]
[1755685220838,6.48785323,181.54,181.46,5.5114]
[1755685221037,3.87688901,181.53,181.46,5.5114]
[1755685221235,5.5107,181.49,181.46,5.5114]
[1755685221942,2.44260024,181.56,181.45,72.66290488]
[1755685222142,6.48532801,181.55,181.44,62.0]
[1755685222342,2.44260024,181.53,181.4,370.14]
[1755685222544,6.48532801,181.52,181.42,5.5127]
[1755685222732,6.48532801,181.51,181.39,2.44260024]
[1755685222931,5.5126,181.43,181.38,137.38260024]
[1755685223137,5.5126,181.43,181.4,5.5133]
[1755685223337,2.44260024,181.53,181.38,137.38260024]
[1755685223540,6.47555322,181.52,181.38,137.38260024]
[1755685223736,6.47555322,181.51,181.38,137.38260024]
[1755685223934,6.47555322,181.5,181.38,137.38260024]
[1755685224141,6.47555322,181.49,181.38,137.38260024]
[1755685224341,3.86978002,181.48,181.38,137.38260024]
[1755685224540,3.86978002,181.47,181.38,137.38260024]
[1755685224736,3.86978002,181.46,181.39,5.5136]
[1755685224940,2.44260024,181.5,181.39,5.5136]
[1755685225140,6.46967306,181.49,181.39,5.5136]
[1755685225342,3.86629139,181.48,181.39,5.5136]
[1755685225543,3.86629139,181.47,181.39,5.5136]
[1755685225741,2.44260024,181.5,181.39,5.5136]
[1755685225934,2.44260024,181.5,181.38,199.38260024]
[1755685225935,6.46475384,181.49,181.38,140.4538]
[1755685226141,3.86334575,181.48,181.38,5.5138]
[1755685226339,5.5133,181.41,181.37,5.5141]
[1755685226541,5.5133,181.41,181.36,2.44260024]
[1755685226943,2.44260024,181.5,181.37,5.5141]
[1755685227141,6.4596648,181.49,181.37,5.5141]
[1755685227344,3.86022511,181.48,181.37,5.5141]
[1755685227540,5.5132,181.41,181.38,5.5139]
[1755685227740,5.5132,181.41,181.36,2.44260024]
[1755685228753,5.5132,181.41,181.37,5.5141]
[1755685231557,5.5133,181.4,181.37,5.5141]
[1755685231857,2.44260024,181.5,181.36,64.44260024]
[1755685231858,2.44260024,181.47,181.36,5.5144]
[1755685232056,3.84971561,181.46,181.36,5.5144]
[1755685232255,2.44260024,181.47,181.36,5.5144]
[1755685232751,2.44260024,181.47,181.35,5.5148]
[1755685232952,3.84761241,181.46,181.35,5.5148]
[1755685233157,3.84761241,181.45,181.35,5.5148]
[1755685233357,2.44260024,181.47,181.35,5.5148]
[1755685233556,3.91159044,181.46,181.35,5.5148]
[1755685233756,3.91159044,181.45,181.35,5.5148]
[1755685233955,2.44260024,181.47,181.35,5.5148]
[1755685234162,5.5138,181.39,181.35,5.5148]
[1755685235059,5.514,181.38,181.34,67.515]
[1755685235253,2.44260024,181.47,181.34,67.515]
[1755685235447,5.5142,181.38,181.34,67.515]
[1755685235857,2.44260024,181.44,181.29,2.44260024]
[1755685236054,2.44260024,181.41,181.29,2.44260024]
[1755685236363,2.44260024,181.41,181.31,5.5159]
[1755685237060,2.44260024,181.41,181.29,2.44260024]
[1755685238258,5.5156,181.33,181.3,5.5163]
[1755685239166,5.5151,181.35,181.31,5.5159]
[1755685239463,2.44260024,181.41,181.31,5.5159]
[1755685239665,5.5151,181.35,181.31,5.5159]
[1755685240060,2.44260024,181.41,181.29,64.44260024]
[1755685240261,5.5147,181.36,181.29,64.44260024]
[1755685240565,2.44260024,181.41,181.29,64.44260024]
[1755685241867,5.5154,181.34,181.33,0.04034028]
[1755685243367,5.5149,181.35,181.33,0.04034028]
[1755685243870,5.5146,181.36,181.33,5.55574028]
[1755685244068,0.03979514,181.37,181.33,0.04034028]
[1755685245965,0.03979514,181.37,181.35,5.5146]
[1755685246170,0.03979514,181.37,181.33,0.04034028]
[1755685246674,5.55419514,181.37,181.33,5.55554028]
[1755685247273,5.55419514,181.37,181.34,5.5151]
[1755685247767,5.5151,181.34,181.33,0.04034028]
[1755685249972,0.03979514,181.37,181.33,0.04034028]
[1755685250371,5.515,181.35,181.33,0.04034028]
[1755685250870,0.03979514,181.37,181.34,5.5151]
[1755685251179,0.03979514,181.37,181.34,2.44260024]
[1755685251371,0.03979514,181.37,181.36,5.5145]
[1755685252774,0.03979514,181.37,181.35,5.5147]
[1755685253678,5.55409514,181.37,181.35,5.5147]
[1755685253877,0.03979514,181.37,181.33,0.04034028]
[1755685254878,5.5151,181.34,181.33,0.04034028]
[1755685256072,5.5149,181.35,181.33,0.04034028]
[1755685257882,5.5151,181.34,181.33,0.04034028]
[1755685261578,0.03979514,181.37,181.33,0.04034028]
[1755685261983,5.55409514,181.37,181.33,0.04034028]
[1755685263078,5.55409514,181.37,181.34,5.5149]
[1755685264684,5.5146,181.36,181.34,5.5149]
[1755685265782,5.55409514,181.37,181.34,5.5149]
[1755685268187,5.5146,181.36,181.34,5.5149]
[1755685271191,0.03979514,181.37,181.35,5.5146]
[1755685271386,6.16201684,181.47,181.34,2.44260024]
[1755685271691,5.5123,181.44,181.41,5.5128]
[1755685271888,376.68201684,181.5,181.38,2.44260024]
[1755685272090,6.48982818,181.49,181.41,2.44260024]
[1755685272293,6.48982818,181.48,181.41,2.44260024]
[1755685272491,3.8865868,181.47,181.41,2.44260024]
[1755685272787,3.8865868,181.46,181.43,0.03918924]
[1755685272994,370.52,181.5,181.43,0.03918924]
[1755685272995,5.5121,181.44,181.43,0.03918924]
[1755685276695,370.52,181.5,181.43,0.03918924]
[1755685276895,3.88469287,181.49,181.43,5.55138924]
[1755685277096,3.88469287,181.48,181.43,5.55138924]
[1755685277292,370.52,181.5,181.43,0.03918924]
[1755685277595,6.48458284,181.49,181.43,0.03918924]
[1755685277895,3.88345119,181.48,181.43,0.03918924]
[1755685278089,3.88345119,181.47,181.43,0.03918924]
[1755685278289,5.5121,181.44,181.43,0.03918924]
[1755685279192,370.52,181.5,181.43,0.03918924]
[1755685279396,3.88141278,181.49,181.43,0.03918924]
[1755685279696,5.5115,181.46,181.43,0.03918924]
[1755685280097,370.52,181.5,181.43,0.03918924]
[1755685280296,3.88118008,181.49,181.43,0.03918924]
[1755685280596,3.88118008,181.48,181.43,0.03918924]
[1755685280794,370.52,181.5,181.43,0.03918924]
[1755685280996,3.88044341,181.49,181.43,0.03918924]
[1755685281299,5.5118,181.45,181.43,0.03918924]
[1755685281685,370.52,181.5,181.43,0.03918924]
[1755685281885,3.87999465,181.49,181.43,0.03918924]
[1755685282095,370.52,181.5,181.43,0.03918924]
[1755685282297,5.5109,181.48,181.44,5.5119]
[1755685282894,5.5112,181.47,181.44,5.5119]
[1755685283293,134.98,181.52,181.43,0.03918924]
[1755685283492,5.5103,181.5,181.43,0.03918924]
[1755685283897,5.5103,181.5,181.46,5.5113]
[1755685284292,2.44260024,181.57,181.48,5.5107]
[1755685284493,3.87676616,181.56,181.48,5.5107]
[1755685284796,5.5096,181.53,181.49,5.5104]
[1755685284998,5.5096,181.53,181.5,0.03903877]
[1755685285395,5.5096,181.53,181.47,2.44260024]
[1755685285590,5.5091,181.54,181.5,5.5101]
[1755685285805,5.5091,181.54,181.5,5.55146227]
[1755685286997,5.5094,181.53,181.5,5.55146227]
[1755685287799,5.5097,181.52,181.5,0.04136227]
[1755685288806,5.51,181.51,181.5,0.04136227]
[1755685289602,5.5097,181.52,181.5,0.04136227]
[1755685290605,5.5097,181.52,181.5,5.55166227]
[1755685291200,5.5095,181.53,181.5,5.55166227]
[1755685291399,134.9,181.58,181.5,0.04136227]
[1755685292594,5.509,181.55,181.52,5.5097]
[1755685292995,5.509,181.55,181.5,0.04136227]
[1755685292996,458.24006199,181.6,181.5,2.48396251]
[1755685293294,5.5087,181.56,181.5,2.48396251]
[1755685293599,5.5087,181.56,181.53,5.5092]
[1755685296106,5.5088,181.55,181.53,5.5092]
[1755685296494,5.5086,181.56,181.53,5.5092]
[1755685297306,5.5082,181.57,181.54,5.509]
[1755685297509,5.5082,181.57,181.52,0.040533]
[1755685298401,5.508,181.58,181.55,5.5087]
[1755685298605,87.82006199,181.6,181.55,5.5087]
[1755685298799,87.82006199,181.6,181.54,5.5089]
[1755685298800,5.5082,181.57,181.54,5.5089]
[1755685299202,5.5082,181.57,181.56,0.04140884]
[1755685311729,5.508,181.58,181.56,0.04140884]
[1755685312724,5.5081,181.57,181.56,0.04140884]
[1755685320831,140.2481,181.57,181.56,8.84e-06]
[1755685324431,140.2481,181.57,181.46,62.0]
[1755685324637,2.44260024,181.55,181.43,2.44260024]
[1755685324838,2.44260024,181.52,181.39,6.13599594]
[1755685325031,134.72,181.51,181.41,5.5128]
[1755685325935,5.5123,181.44,181.4,5.5132]
[1755685326539,5.5123,181.44,181.41,5.5129]
[1755685326838,5.5118,181.45,181.41,5.5129]
[1755685327934,5.5118,181.45,181.38,8.57859618]
[1755685327935,134.72,181.51,181.38,2.44260024]
[1755685328132,2.44260024,181.49,181.34,6.13599594]
[1755685328337,2.61080743,181.48,181.33,378.99859618]
[1755685328536,2.44260024,181.46,181.33,372.86260024]
[1755685328738,134.72,181.45,181.33,372.86260024]
[1755685328938,5.5138,181.39,181.35,5.5146]
[1755685329738,5.5139,181.38,181.35,5.5146]
[1755685329936,5.5139,181.38,181.34,5.515]
[1755685330335,5.5142,181.37,181.35,0.04068829]
[1755685330843,5.5145,181.36,181.35,0.04068829]
[1755685337448,0.03918503,181.38,181.35,0.04068829]
[1755685338246,5.55328503,181.38,181.35,0.04068829]
[1755685338445,0.03918503,181.38,181.35,0.04068829]
[1755685339543,5.5142,181.37,181.35,0.04068829]
[1755685340453,5.55318503,181.38,181.35,5.55538829]
[1755685341649,5.5142,181.37,181.35,0.04068829]
[1755685342956,5.5145,181.36,181.35,0.04068829]
[1755685344558,5.5145,181.36,181.35,8.829e-05]
[1755685351683,7.95710024,181.36,181.35,8.829e-05]
[1755685351961,5.5174,181.27,181.24,2.44260024]
[1755685352856,5.5171,181.28,181.25,5.5177]
[1755685353161,2.44260024,181.36,181.24,2.44260024]
[1755685353366,5.55597265,181.28,181.25,5.5176]
[1755685353761,5.5169,181.28,181.25,5.5176]
[1755685353961,5.5169,181.28,181.24,2.44260024]
[1755685353962,5.55635392,181.28,181.24,2.44260024]
[1755685354766,5.55635392,181.28,181.24,64.44260024]
[1755685355161,5.55635392,181.28,181.25,5.5178]
[1755685356163,5.5173,181.27,181.25,5.5178]
[1755685357864,5.55645392,181.28,181.26,5.5175]
[1755685358369,5.55645392,181.28,181.25,5.5177]
[1755685359074,5.55645392,181.28,181.26,5.5175]
[1755685359274,0.03945392,181.28,181.24,2.44260024]
[1755685359476,0.03945392,181.28,181.25,5.5177]
[1755685360273,0.03945392,181.28,181.23,62.0]
[1755685360770,5.5182,181.24,181.22,7.96130024]
[1755685361166,0.03945392,181.28,181.22,7.96130024]
[1755685361374,5.518,181.25,181.23,5.5185]
[1755685361874,5.518,181.25,181.22,7.96130024]
[1755685362079,5.5182,181.24,181.22,7.96130024]
[1755685362377,5.5182,181.24,181.22,2.44260024]
[1755685362775,5.5182,181.24,181.22,5.5188]
[1755685362976,5.5179,181.25,181.22,5.5188]
[1755685366172,5.5177,181.26,181.23,5.5183]
[1755685366973,0.03945392,181.28,181.22,2.44260024]
[1755685367376,5.55655392,181.28,181.26,5.5175]
[1755685367673,0.03945392,181.28,181.26,5.5175]
[1755685368579,5.55655392,181.28,181.25,5.5177]
[1755685370477,5.5173,181.27,181.25,5.5177]
[1755685375473,5.55655392,181.28,181.25,5.5177]
[1755685377483,5.5173,181.27,181.25,5.5177]
[1755685381391,0.03945392,181.28,181.22,2.44260024]
[1755685381683,0.03945392,181.28,181.25,2.44260024]
[1755685381888,0.03945392,181.28,181.27,5.5173]
[1755685382189,0.03945392,181.28,181.25,2.44260024]
[1755685382389,0.03945392,181.28,181.22,2.44260024]
[1755685382585,0.03945392,181.28,181.21,2.44260024]
[1755685382787,0.03945392,181.28,181.19,140.97599594]
[1755685382989,0.03945392,181.28,181.19,134.84]
[1755685383198,2.44260024,181.3,181.19,134.84]
[1755685383584,0.03855411,181.25,181.19,140.3594]
[1755685384486,0.03855411,181.25,181.16,6.13599594]
[1755685384685,0.03855411,181.25,181.15,2.44260024]
[1755685385083,5.5195,181.2,181.17,5.5201]
[1755685385888,5.55555073,181.2,181.17,5.5201]
[1755685386483,5.55555073,181.2,181.16,62.0]
[1755685386484,0.03605073,181.2,181.18,5.52]
[1755685387085,0.03605073,181.2,181.19,5.5197]
[1755685388789,0.03605073,181.2,181.18,5.5199]
[1755685389394,0.03605073,181.2,181.16,62.0]
[1755685389395,5.55545073,181.2,181.17,5.5203]
[1755685392995,5.55545073,181.2,181.18,5.5199]
[1755685393395,0.03605073,181.2,181.18,5.5199]
[1755685394596,0.03605073,181.2,181.19,5.5197]
[1755685405003,0.03605073,181.2,181.15,2.44260024]
[1755685405403,5.5201,181.18,181.16,5.5205]
[1755685405604,0.03605073,181.2,181.15,2.44260024]
[1755685406000,0.03605073,181.2,181.15,5.5209]
[1755685407201,5.5203,181.17,181.15,5.5209]
[1755685408100,5.5203,181.17,181.12,2.44260024]
[1755685408101,0.03605073,181.2,181.1,6.13599594]
[1755685408300,0.03605073,181.2,181.09,8.57859618]
[1755685408507,5.5211,181.15,181.12,5.5216]
[1755685409310,5.5211,181.15,181.13,5.5214]
[1755685409906,5.55845036,181.16,181.13,5.5214]
[1755685410505,5.55845036,181.16,181.14,5.5212]
[1755685413409,0.03775036,181.16,181.14,5.5212]
[1755685420517,5.55835036,181.16,181.14,5.5212]
[1755685421013,5.55835036,181.16,181.13,5.5214]
[1755685423122,0.03775036,181.16,181.14,5.5212]
[1755685424324,5.55835036,181.16,181.13,5.5214]
[1755685428127,5.55835036,181.16,181.14,5.5212]
[1755685428323,5.55835036,181.16,181.14,7.08127966]
[1755685430430,5.55835036,181.16,181.14,1.56007966]
[1755685435333,0.03775036,181.16,181.12,1.56007966]
[1755685436226,5.5212,181.14,181.12,1.56007966]
[1755685437429,0.03775036,181.16,181.1,1.56007966]
[1755685440235,0.03775036,181.16,181.1,7.08247966]
[1755685440434,0.03775036,181.16,181.12,1.56007966]
[1755685440930,0.03775036,181.16,181.07,6.13599594]
[1755685441136,0.03775036,181.16,181.09,1.56007966]
[1755685441332,1.56007966,181.17,181.09,1.56007966]
[1755685441734,0.04237942,181.14,181.09,1.56007966]
[1755685443335,5.5223,181.11,181.09,1.56007966]
[1755685444036,5.5224,181.1,181.09,1.56007966]
[1755685447433,5.5222,181.11,181.09,1.56007966]
[1755685447938,5.5222,181.11,181.08,5.523]
[1755685448139,5.5222,181.11,181.08,7.08307966]
[1755685450436,0.04237942,181.14,181.05,203.91687067]
[1755685450748,1.56007966,181.13,181.06,7.08357966]
[1755685451339,0.04022243,181.11,181.06,7.08357966]
[1755685451743,5.5229,181.09,181.06,7.08357966]
[1755685453438,5.5226,181.1,181.07,5.5233]
[1755685455648,0.04022243,181.11,181.08,1.56007966]
[1755685455836,0.04022243,181.11,181.1,1.56007966]
[1755685456241,0.04022243,181.11,181.1,7.08247966]
[1755685457136,0.04022243,181.11,181.1,1.56007966]
[1755685458048,0.04022243,181.11,181.09,5.5226]